[Event "December 12 Early 2023"]
[Site "https://www.chess.com"]
[Date "2023.12.12"]
[Round "3"]
[White "Mitrabha, Guha"]
[Black "Timerkhanov, Alexander"]
[Result "1-0"]
[Board "29"]
[TimeControl "180+1"]
[WhiteFideId "5057000"]
[BlackFideId "24177938"]
[WhiteElo "2902"]
[BlackElo "2675"]
[WhiteTeam "IND"]
[BlackTeam "RUS"]
[WhiteClock "0:00:17"]
[BlackClock "0:00:03"]

1. Nf3 {[%clk 0:02:23]}  d5 {[%clk 0:02:59]} 2. d4 {[%clk 0:02:23]}  Nf6 {[%clk 0:02:58]} 3. Bf4 {[%clk 0:02:24]}  c5 {[%clk 0:02:58]} 4. e3 {[%clk 0:02:24]}  Nc6 {[%clk 0:02:58]} 5. Nbd2 {[%clk 0:02:24]}  Nh5 {[%clk 0:02:56]} 6. Be5 {[%clk 0:02:23]}  e6 {[%clk 0:02:52]} 7. c3 {[%clk 0:02:20]}  f6 {[%clk 0:02:48]} 8. Bg3 {[%clk 0:02:19]}  g6 {[%clk 0:02:47]} 9. Bb5 {[%clk 0:02:14]}  Bd7 {[%clk 0:02:46]} 10. O-O {[%clk 0:02:14]}  Nxg3 {[%clk 0:02:37]} 11. hxg3 {[%clk 0:02:10]}  cxd4 {[%clk 0:02:28]} 12. exd4 {[%clk 0:02:05]}  Bd6 {[%clk 0:02:28]} 13. Re1 {[%clk 0:02:04]}  Kf7 {[%clk 0:02:28]} 14. Bd3 {[%clk 0:02:04]}  Kg7 {[%clk 0:02:24]} 15. Nf1 {[%clk 0:02:02]}  Re8 {[%clk 0:02:13]} 16. Ne3 {[%clk 0:02:02]}  Rc8 {[%clk 0:02:04]} 17. Qd2 {[%clk 0:02:02]}  Ne7 {[%clk 0:01:57]} 18. Ng4 {[%clk 0:02:00]}  Nf5 {[%clk 0:01:48]} 19. Bxf5 {[%clk 0:01:56]}  exf5 {[%clk 0:01:49]} 20. Qh6+ {[%clk 0:01:52]}  Kg8 {[%clk 0:01:47]} 21. Ne3 {[%clk 0:01:43]}  Be6 {[%clk 0:01:44]} 22. Re2 {[%clk 0:01:41]}  Bf7 {[%clk 0:01:44]} 23. Rae1 {[%clk 0:01:40]}  Qc7 {[%clk 0:01:43]} 24. Qh4 {[%clk 0:01:32]}  Be7 {[%clk 0:01:17]} 25. Qh6 {[%clk 0:01:25]}  Qd7 {[%clk 0:01:14]} 26. a3 {[%clk 0:01:18]}  b5 {[%clk 0:01:14]} 27. Nh2 {[%clk 0:01:03]}  a5 {[%clk 0:01:06]} 28. g4 {[%clk 0:01:03]}  Bf8 {[%clk 0:01:03]} 29. Qf4 {[%clk 0:00:58]}  Bd6 {[%clk 0:01:02]} 30. Qf3 {[%clk 0:00:59]}  Bxh2+ {[%clk 0:00:34]} 31. Kxh2 {[%clk 0:00:58]}  Qd6+ {[%clk 0:00:31]} 32. g3 {[%clk 0:00:55]}  fxg4 {[%clk 0:00:30]} 33. Nxg4 {[%clk 0:00:54]}  Kg7 {[%clk 0:00:30]} 34. Kg2 {[%clk 0:00:48]}  Rxe2 {[%clk 0:00:28]} 35. Rxe2 {[%clk 0:00:49]}  Re8 {[%clk 0:00:26]} 36. Rxe8 {[%clk 0:00:45]}  Bxe8 {[%clk 0:00:27]} 37. Qe3 {[%clk 0:00:45]}  Bd7 {[%clk 0:00:26]} 38. Qh6+ {[%clk 0:00:45]}  Kg8 {[%clk 0:00:26]} 39. Ne3 {[%clk 0:00:45]}  Be6 {[%clk 0:00:26]} 40. Qh1 {[%clk 0:00:43]}  b4 {[%clk 0:00:25]} 41. axb4 {[%clk 0:00:40]}  axb4 {[%clk 0:00:26]} 42. Qa1 {[%clk 0:00:40]}  bxc3 {[%clk 0:00:26]} 43. bxc3 {[%clk 0:00:41]}  Qc6 {[%clk 0:00:22]} 44. Qa5 {[%clk 0:00:40]}  h5 {[%clk 0:00:20]} 45. Kg1 {[%clk 0:00:37]}  Kg7 {[%clk 0:00:20]} 46. Ng2 {[%clk 0:00:35]}  g5 {[%clk 0:00:20]} 47. Ne3 {[%clk 0:00:35]}  Kg6 {[%clk 0:00:19]} 48. Qb4 {[%clk 0:00:33]}  h4 {[%clk 0:00:15]} 49. gxh4 {[%clk 0:00:29]}  gxh4 {[%clk 0:00:16]} 50. Qb1+ {[%clk 0:00:26]}  Kg7 {[%clk 0:00:16]} 51. Qb4 {[%clk 0:00:26]}  h3 {[%clk 0:00:15]} 52. Qe7+ {[%clk 0:00:25]}  Kg6 {[%clk 0:00:15]} 53. f4 {[%clk 0:00:22]}  Bf7 {[%clk 0:00:14]} 54. f5+ {[%clk 0:00:19]}  Kg7 {[%clk 0:00:14]} 55. Ng4 {[%clk 0:00:20]}  Qa6 {[%clk 0:00:13]} 56. Kh2 {[%clk 0:00:18]}  Qa2+ {[%clk 0:00:13]} 57. Kxh3 {[%clk 0:00:18]}  Qa6 {[%clk 0:00:13]} 58. Qe3 {[%clk 0:00:18]}  Qf1+ {[%clk 0:00:13]} 59. Kg3 {[%clk 0:00:18]}  Qa1 {[%clk 0:00:03]} 60. Qh6+ {[%clk 0:00:17]} 1-0

[Event "December 12 Early 2023"]
[Site "https://www.chess.com"]
[Date "2023.12.12"]
[Round "3"]
[White "Riehle, Marco"]
[Black "BestStelker"]
[Result "1/2-1/2"]
[Board "30"]
[TimeControl "180+1"]
[WhiteFideId "12904392"]
[WhiteElo "2897"]
[BlackElo "2668"]
[WhiteTeam "GER"]
[WhiteClock "0:00:23"]
[BlackClock "0:00:15"]

1. e4 {[%clk 0:02:56]}  e6 {[%clk 0:02:59]} 2. c4 {[%clk 0:02:55]}  d5 {[%clk 0:03:00]} 3. cxd5 {[%clk 0:02:56]}  exd5 {[%clk 0:03:01]} 4. Qb3 {[%clk 0:02:56]}  Nf6 {[%clk 0:02:46]} 5. e5 {[%clk 0:02:54]}  Ne4 {[%clk 0:02:45]} 6. Nc3 {[%clk 0:02:54]}  Nxc3 {[%clk 0:02:03]} 7. bxc3 {[%clk 0:02:53]}  Be7 {[%clk 0:01:56]} 8. d4 {[%clk 0:02:53]}  c5 {[%clk 0:01:54]} 9. Nf3 {[%clk 0:02:51]}  O-O {[%clk 0:01:53]} 10. Be2 {[%clk 0:02:51]}  Nc6 {[%clk 0:01:50]} 11. O-O {[%clk 0:02:50]}  Qb6 {[%clk 0:01:49]} 12. Be3 {[%clk 0:02:38]}  Qxb3 {[%clk 0:01:36]} 13. axb3 {[%clk 0:02:39]}  cxd4 {[%clk 0:01:36]} 14. cxd4 {[%clk 0:02:34]}  Bf5 {[%clk 0:01:36]} 15. Nd2 {[%clk 0:02:30]}  f6 {[%clk 0:01:15]} 16. f4 {[%clk 0:02:24]}  fxe5 {[%clk 0:01:11]} 17. fxe5 {[%clk 0:02:23]}  a6 {[%clk 0:01:09]} 18. Bf3 {[%clk 0:02:13]}  Be6 {[%clk 0:01:05]} 19. Rfc1 {[%clk 0:02:06]}  Rfc8 {[%clk 0:01:02]} 20. g3 {[%clk 0:02:03]}  Nb4 {[%clk 0:01:01]} 21. Nf1 {[%clk 0:01:51]}  Rc6 {[%clk 0:00:22]} 22. Rxc6 {[%clk 0:01:44]}  bxc6 {[%clk 0:00:20]} 23. Ra4 {[%clk 0:01:37]}  Rf8 {[%clk 0:00:14]} 24. Bg2 {[%clk 0:01:31]}  Bf5 {[%clk 0:00:11]} 25. h4 {[%clk 0:01:23]}  Bd3 {[%clk 0:00:09]} 26. Bf2 {[%clk 0:01:15]}  Bb5 {[%clk 0:00:07]} 27. Ra1 {[%clk 0:01:14]}  Nd3 {[%clk 0:00:06]} 28. Be3 {[%clk 0:01:13]}  h5 {[%clk 0:00:04]} 29. Nd2 {[%clk 0:01:03]}  Bb4 {[%clk 0:00:04]} 30. Nf3 {[%clk 0:01:02]}  Be7 {[%clk 0:00:02]} 31. Ne1 {[%clk 0:00:58]}  Nxe1 {[%clk 0:00:02]} 32. Rxe1 {[%clk 0:00:59]}  Rb8 {[%clk 0:00:02]} 33. Rc1 {[%clk 0:00:58]}  Kf7 {[%clk 0:00:02]} 34. Rc2 {[%clk 0:00:55]}  g6 {[%clk 0:00:02]} 35. Rf2+ {[%clk 0:00:55]}  Kg7 {[%clk 0:00:03]} 36. Rc2 {[%clk 0:00:49]}  Rb6 {[%clk 0:00:03]} 37. Kh2 {[%clk 0:00:47]}  Bd3 {[%clk 0:00:03]} 38. Rc3 {[%clk 0:00:47]}  Bf5 {[%clk 0:00:04]} 39. Bg5 {[%clk 0:00:43]}  Bxg5 {[%clk 0:00:04]} 40. hxg5 {[%clk 0:00:44]}  Kf7 {[%clk 0:00:05]} 41. Kg1 {[%clk 0:00:40]}  Ke6 {[%clk 0:00:05]} 42. Kf2 {[%clk 0:00:41]}  Bb1 {[%clk 0:00:02]} 43. Bf3 {[%clk 0:00:38]}  Bf5 {[%clk 0:00:03]} 44. Ke3 {[%clk 0:00:38]}  Bb1 {[%clk 0:00:02]} 45. Bd1 {[%clk 0:00:38]}  Bf5 {[%clk 0:00:03]} 46. Rc1 {[%clk 0:00:38]}  Be4 {[%clk 0:00:03]} 47. Ra1 {[%clk 0:00:38]}  Kf5 {[%clk 0:00:03]} 48. Ra2 {[%clk 0:00:37]}  Kxg5 {[%clk 0:00:03]} 49. Rf2 {[%clk 0:00:37]}  Rb7 {[%clk 0:00:03]} 50. Rf6 {[%clk 0:00:36]}  Rc7 {[%clk 0:00:03]} 51. b4 {[%clk 0:00:35]}  Rb7 {[%clk 0:00:02]} 52. Rxc6 {[%clk 0:00:35]}  Rxb4 {[%clk 0:00:03]} 53. e6 {[%clk 0:00:31]}  Kf6 {[%clk 0:00:03]} 54. Rxa6 {[%clk 0:00:31]}  Rb1 {[%clk 0:00:03]} 55. Ba4 {[%clk 0:00:30]}  Bf5 {[%clk 0:00:03]} 56. Bd7 {[%clk 0:00:29]}  Re1+ {[%clk 0:00:03]} 57. Kf2 {[%clk 0:00:29]}  Re4 {[%clk 0:00:04]} 58. Ra4 {[%clk 0:00:25]}  Bxe6 {[%clk 0:00:04]} 59. Bc6 {[%clk 0:00:25]}  Kf5 {[%clk 0:00:04]} 60. Bb5 {[%clk 0:00:23]}  g5 {[%clk 0:00:04]} 61. Bd3 {[%clk 0:00:23]}  h4 {[%clk 0:00:03]} 62. gxh4 {[%clk 0:00:22]}  gxh4 {[%clk 0:00:03]} 63. Ra8 {[%clk 0:00:22]}  Kf4 {[%clk 0:00:03]} 64. Rf8+ {[%clk 0:00:20]}  Bf5 {[%clk 0:00:02]} 65. Bxe4 {[%clk 0:00:20]}  Kxe4 {[%clk 0:00:03]} 66. Rh8 {[%clk 0:00:18]}  h3 {[%clk 0:00:03]} 67. Rh4+ {[%clk 0:00:19]}  Kd3 {[%clk 0:00:03]} 68. Kg3 {[%clk 0:00:19]}  Be4 {[%clk 0:00:03]} 69. Rxh3 {[%clk 0:00:19]}  Kxd4 {[%clk 0:00:04]} 70. Kf2 {[%clk 0:00:20]}  Kc4 {[%clk 0:00:04]} 71. Ke3 {[%clk 0:00:20]}  Kc3 {[%clk 0:00:04]} 72. Rh8 {[%clk 0:00:20]}  Bd3 {[%clk 0:00:03]} 73. Rc8+ {[%clk 0:00:20]}  Bc4 {[%clk 0:00:04]} 74. Rd8 {[%clk 0:00:20]}  Kb3 {[%clk 0:00:04]} 75. Kd4 {[%clk 0:00:20]}  Kb4 {[%clk 0:00:04]} 76. Rb8+ {[%clk 0:00:20]}  Ka3 {[%clk 0:00:05]} 77. Kc3 {[%clk 0:00:20]}  Ka2 {[%clk 0:00:06]} 78. Rb2+ {[%clk 0:00:19]}  Ka3 {[%clk 0:00:06]} 79. Rb7 {[%clk 0:00:19]}  Ka4 {[%clk 0:00:06]} 80. Rb8 {[%clk 0:00:19]}  Ka5 {[%clk 0:00:07]} 81. Kd4 {[%clk 0:00:19]}  Ka4 {[%clk 0:00:07]} 82. Rb7 {[%clk 0:00:19]}  Ka5 {[%clk 0:00:08]} 83. Kc5 {[%clk 0:00:19]}  Ka4 {[%clk 0:00:08]} 84. Rb8 {[%clk 0:00:19]}  Ka3 {[%clk 0:00:09]} 85. Kd4 {[%clk 0:00:20]}  Ka4 {[%clk 0:00:09]} 86. Rb1 {[%clk 0:00:20]}  Ka3 {[%clk 0:00:09]} 87. Kc3 {[%clk 0:00:20]}  Ka4 {[%clk 0:00:10]} 88. Rb8 {[%clk 0:00:21]}  Ka5 {[%clk 0:00:10]} 89. Kb2 {[%clk 0:00:21]}  Ka6 {[%clk 0:00:10]} 90. Ka3 {[%clk 0:00:21]}  Ka7 {[%clk 0:00:10]} 91. Rd8 {[%clk 0:00:22]}  Kb6 {[%clk 0:00:10]} 92. Kb4 {[%clk 0:00:22]}  Kc6 {[%clk 0:00:11]} 93. Rh8 {[%clk 0:00:22]}  Kd6 {[%clk 0:00:11]} 94. Kc3 {[%clk 0:00:22]}  Kc5 {[%clk 0:00:11]} 95. Rh5 {[%clk 0:00:22]}  Kd6 {[%clk 0:00:12]} 96. Kd4 {[%clk 0:00:22]}  Kc6 {[%clk 0:00:12]} 97. Rh6+ {[%clk 0:00:23]}  Kb5 {[%clk 0:00:13]} 98. Rd6 {[%clk 0:00:23]}  Kb4 {[%clk 0:00:13]} 99. Rb6+ {[%clk 0:00:23]}  Ka5 {[%clk 0:00:14]} 100. Kc5 {[%clk 0:00:23]}  Ka4 {[%clk 0:00:14]} 101. Rb4+ {[%clk 0:00:22]}  Ka3 {[%clk 0:00:15]} 102. Rxc4 {[%clk 0:00:23]}  dxc4 {[%clk 0:00:15]} 103. Kxc4 {[%clk 0:00:23]} 1/2-1/2

[Event "December 12 Early 2023"]
[Site "https://www.chess.com"]
[Date "2023.12.12"]
[Round "3"]
[White "Skatchkov, Valery"]
[Black "Shankland, Sam"]
[Result "0-1"]
[Board "33"]
[TimeControl "180+1"]
[WhiteFideId "24195812"]
[BlackFideId "2004887"]
[WhiteElo "2623"]
[BlackElo "2885"]
[WhiteTeam "RUS"]
[BlackTeam "USA"]
[WhiteClock "0:00:11"]
[BlackClock "0:01:06"]

1. d4 {[%clk 0:03:00]}  d5 {[%clk 0:02:59]} 2. c4 {[%clk 0:03:00]}  c6 {[%clk 0:02:59]} 3. Nf3 {[%clk 0:03:00]}  Nf6 {[%clk 0:02:59]} 4. Nc3 {[%clk 0:03:00]}  e6 {[%clk 0:02:59]} 5. g3 {[%clk 0:03:00]}  dxc4 {[%clk 0:02:57]} 6. Bg2 {[%clk 0:03:01]}  Nbd7 {[%clk 0:02:58]} 7. O-O {[%clk 0:02:58]}  b5 {[%clk 0:02:58]} 8. e4 {[%clk 0:02:58]}  Bb7 {[%clk 0:02:56]} 9. e5 {[%clk 0:02:57]}  Nd5 {[%clk 0:02:57]} 10. Ng5 {[%clk 0:02:52]}  h6 {[%clk 0:02:57]} 11. Nxe6 {[%clk 0:02:51]}  fxe6 {[%clk 0:02:58]} 12. Qh5+ {[%clk 0:02:52]}  Ke7 {[%clk 0:02:58]} 13. Ne4 {[%clk 0:02:50]}  Qe8 {[%clk 0:02:58]} 14. Bg5+ {[%clk 0:02:48]}  hxg5 {[%clk 0:02:59]} 15. Qxh8 {[%clk 0:02:49]}  Kd8 {[%clk 0:02:59]} 16. Nxg5 {[%clk 0:02:48]}  Qe7 {[%clk 0:02:55]} 17. Qh5 {[%clk 0:02:35]}  N7b6 {[%clk 0:02:17]} 18. Qg6 {[%clk 0:02:28]}  Bc8 {[%clk 0:02:15]} 19. f4 {[%clk 0:02:22]}  Kc7 {[%clk 0:02:14]} 20. Bh3 {[%clk 0:02:18]}  Na4 {[%clk 0:02:08]} 21. Rf2 {[%clk 0:02:04]}  Kb6 {[%clk 0:01:58]} 22. Bxe6 {[%clk 0:01:35]}  Bxe6 {[%clk 0:01:57]} 23. Nxe6 {[%clk 0:01:35]}  Qe8 {[%clk 0:01:45]} 24. Nxf8 {[%clk 0:01:22]}  Qxf8 {[%clk 0:01:45]} 25. b3 {[%clk 0:01:22]}  cxb3 {[%clk 0:01:33]} 26. axb3 {[%clk 0:01:23]}  Nac3 {[%clk 0:01:33]} 27. f5 {[%clk 0:01:06]}  Qb4 {[%clk 0:01:29]} 28. Rd2 {[%clk 0:00:31]}  Ne2+ {[%clk 0:01:07]} 29. Rxe2 {[%clk 0:00:30]}  Qxd4+ {[%clk 0:01:08]} 30. Kg2 {[%clk 0:00:29]}  Qxa1 {[%clk 0:01:08]} 31. Qxg7 {[%clk 0:00:23]}  Qd1 {[%clk 0:01:08]} 32. Re4 {[%clk 0:00:11]}  Qc2+ {[%clk 0:01:06]} 0-1

[Event "December 12 Early 2023"]
[Site "https://www.chess.com"]
[Date "2023.12.12"]
[Round "3"]
[White "Szpar, Milosz"]
[Black "Tologon tegin, Semetei"]
[Result "0-1"]
[Board "34"]
[TimeControl "180+1"]
[WhiteFideId "1184989"]
[BlackFideId "13800574"]
[WhiteElo "2882"]
[BlackElo "2611"]
[WhiteTeam "POL"]
[BlackTeam "KGZ"]
[WhiteClock "0:00:05"]
[BlackClock "0:00:22"]

1. e4 {[%clk 0:03:00]}  e5 {[%clk 0:02:58]} 2. Nf3 {[%clk 0:03:00]}  Nc6 {[%clk 0:02:59]} 3. Nc3 {[%clk 0:03:00]}  Nf6 {[%clk 0:02:58]} 4. Bb5 {[%clk 0:02:59]}  Bc5 {[%clk 0:02:57]} 5. O-O {[%clk 0:02:57]}  O-O {[%clk 0:02:57]} 6. Nxe5 {[%clk 0:02:56]}  Nxe5 {[%clk 0:02:56]} 7. d4 {[%clk 0:02:55]}  Bd6 {[%clk 0:02:56]} 8. f4 {[%clk 0:02:53]}  Nc6 {[%clk 0:02:49]} 9. e5 {[%clk 0:02:53]}  Be7 {[%clk 0:02:48]} 10. d5 {[%clk 0:02:46]}  Bc5+ {[%clk 0:02:48]} 11. Kh1 {[%clk 0:02:45]}  a6 {[%clk 0:02:44]} 12. Be2 {[%clk 0:01:29]}  Nd4 {[%clk 0:02:43]} 13. exf6 {[%clk 0:01:10]}  Qxf6 {[%clk 0:02:23]} 14. Ne4 {[%clk 0:01:06]}  Qe7 {[%clk 0:02:23]} 15. Bd3 {[%clk 0:01:04]}  d6 {[%clk 0:02:20]} 16. c3 {[%clk 0:00:40]}  Nf5 {[%clk 0:02:17]} 17. Bd2 {[%clk 0:00:38]}  Ba7 {[%clk 0:02:02]} 18. Qf3 {[%clk 0:00:35]}  Bd7 {[%clk 0:01:57]} 19. Rae1 {[%clk 0:00:35]}  Qh4 {[%clk 0:01:56]} 20. g4 {[%clk 0:00:21]}  Nh6 {[%clk 0:01:50]} 21. g5 {[%clk 0:00:20]}  Ng4 {[%clk 0:01:29]} 22. Re2 {[%clk 0:00:18]}  f6 {[%clk 0:01:25]} 23. Be1 {[%clk 0:00:17]}  Qh5 {[%clk 0:01:22]} 24. gxf6 {[%clk 0:00:16]}  gxf6 {[%clk 0:01:20]} 25. Rg2 {[%clk 0:00:16]}  Kh8 {[%clk 0:01:18]} 26. h3 {[%clk 0:00:15]}  f5 {[%clk 0:01:14]} 27. Ng5 {[%clk 0:00:10]}  Rae8 {[%clk 0:01:11]} 28. Bd2 {[%clk 0:00:08]}  h6 {[%clk 0:01:06]} 29. Rh2 {[%clk 0:00:03]}  Nf6 {[%clk 0:00:59]} 30. Qxh5 {[%clk 0:00:03]}  Nxh5 {[%clk 0:00:59]} 31. Nf3 {[%clk 0:00:03]}  Ng3+ {[%clk 0:00:54]} 32. Kg2 {[%clk 0:00:04]}  Rg8 {[%clk 0:00:54]} 33. Re1 {[%clk 0:00:03]}  Ne4+ {[%clk 0:00:43]} 34. Kf1 {[%clk 0:00:04]}  Ng3+ {[%clk 0:00:42]} 35. Kg2 {[%clk 0:00:05]}  Ne4+ {[%clk 0:00:40]} 36. Kf1 {[%clk 0:00:05]}  Rg3 {[%clk 0:00:35]} 37. Bxe4 {[%clk 0:00:05]}  fxe4 {[%clk 0:00:35]} 38. Nd4 {[%clk 0:00:05]}  Bxd4 {[%clk 0:00:32]} 39. cxd4 {[%clk 0:00:06]}  Bb5+ {[%clk 0:00:32]} 40. Kf2 {[%clk 0:00:06]}  Reg8 {[%clk 0:00:31]} 41. Rxe4 {[%clk 0:00:04]}  Rg1 {[%clk 0:00:29]} 42. Be1 {[%clk 0:00:04]}  Rf1+ {[%clk 0:00:29]} 43. Ke3 {[%clk 0:00:03]}  Rxe1+ {[%clk 0:00:29]} 44. Kf3 {[%clk 0:00:03]}  Rf1+ {[%clk 0:00:27]} 45. Ke3 {[%clk 0:00:03]}  Re1+ {[%clk 0:00:24]} 46. Kf3 {[%clk 0:00:03]}  Rxe4 {[%clk 0:00:24]} 47. Kxe4 {[%clk 0:00:04]}  Kg7 {[%clk 0:00:23]} 48. f5 {[%clk 0:00:04]}  Kf6 {[%clk 0:00:23]} 49. a4 {[%clk 0:00:03]}  Bxa4 {[%clk 0:00:23]} 50. Kf4 {[%clk 0:00:04]}  Rg5 {[%clk 0:00:22]} 51. Re2 {[%clk 0:00:04]}  Rxf5+ {[%clk 0:00:22]} 52. Kg4 {[%clk 0:00:04]}  Rxd5 {[%clk 0:00:22]} 53. Kf4 {[%clk 0:00:05]}  Rxd4+ {[%clk 0:00:22]} 54. Ke3 {[%clk 0:00:05]}  Rh4 {[%clk 0:00:22]} 0-1

[Event "December 12 Early 2023"]
[Site "https://www.chess.com"]
[Date "2023.12.12"]
[Round "3"]
[White "Cremisi, Daniel"]
[Black "Ilamparthi A R"]
[Result "1/2-1/2"]
[Board "35"]
[TimeControl "180+1"]
[WhiteFideId "2089882"]
[BlackFideId "45015775"]
[WhiteElo "2610"]
[BlackElo "2879"]
[WhiteTeam "USA"]
[BlackTeam "IND"]
[WhiteClock "0:00:09"]
[BlackClock "0:00:14"]

1. d4 {[%clk 0:03:00]}  Nf6 {[%clk 0:02:59]} 2. Nf3 {[%clk 0:03:01]}  g6 {[%clk 0:02:59]} 3. c4 {[%clk 0:02:59]}  Bg7 {[%clk 0:02:59]} 4. Nc3 {[%clk 0:03:00]}  O-O {[%clk 0:02:59]} 5. e4 {[%clk 0:03:00]}  d6 {[%clk 0:02:59]} 6. Be2 {[%clk 0:03:00]}  e5 {[%clk 0:02:59]} 7. dxe5 {[%clk 0:03:00]}  dxe5 {[%clk 0:02:58]} 8. Qxd8 {[%clk 0:03:01]}  Rxd8 {[%clk 0:02:59]} 9. Bg5 {[%clk 0:03:01]}  Re8 {[%clk 0:02:55]} 10. Nd5 {[%clk 0:03:00]}  Nxd5 {[%clk 0:02:55]} 11. cxd5 {[%clk 0:03:01]}  c6 {[%clk 0:02:54]} 12. Bc4 {[%clk 0:03:01]}  cxd5 {[%clk 0:02:54]} 13. Bxd5 {[%clk 0:03:01]}  Nd7 {[%clk 0:02:55]} 14. O-O {[%clk 0:03:00]}  Nf6 {[%clk 0:02:48]} 15. Bxf6 {[%clk 0:02:54]}  Bxf6 {[%clk 0:02:48]} 16. Rac1 {[%clk 0:02:54]}  Be6 {[%clk 0:02:48]} 17. Bxe6 {[%clk 0:02:45]}  Rxe6 {[%clk 0:02:47]} 18. Rc7 {[%clk 0:02:45]}  Rb6 {[%clk 0:02:47]} 19. b3 {[%clk 0:02:45]}  Rd8 {[%clk 0:02:47]} 20. Rfc1 {[%clk 0:02:40]}  Kg7 {[%clk 0:02:43]} 21. g4 {[%clk 0:02:35]}  Rd3 {[%clk 0:02:36]} 22. Kg2 {[%clk 0:02:34]}  Rb5 {[%clk 0:02:21]} 23. g5 {[%clk 0:02:10]}  Bd8 {[%clk 0:02:11]} 24. Rc8 {[%clk 0:02:01]}  h6 {[%clk 0:02:00]} 25. h4 {[%clk 0:02:00]}  Rd6 {[%clk 0:01:50]} 26. Ra8 {[%clk 0:01:41]}  hxg5 {[%clk 0:01:19]} 27. hxg5 {[%clk 0:01:36]}  f6 {[%clk 0:01:16]} 28. Rcc8 {[%clk 0:01:29]}  Be7 {[%clk 0:01:10]} 29. Rc7 {[%clk 0:01:22]}  Kf7 {[%clk 0:01:08]} 30. Rh8 {[%clk 0:01:21]}  Ke6 {[%clk 0:01:04]} 31. Rh7 {[%clk 0:00:36]}  Bd8 {[%clk 0:01:02]} 32. Rcg7 {[%clk 0:00:33]}  Rb4 {[%clk 0:00:58]} 33. Rxg6 {[%clk 0:00:31]}  Rxe4 {[%clk 0:00:43]} 34. gxf6 {[%clk 0:00:30]}  Kf5 {[%clk 0:00:40]} 35. Rg5+ {[%clk 0:00:16]}  Ke6 {[%clk 0:00:36]} 36. f7 {[%clk 0:00:15]}  Be7 {[%clk 0:00:33]} 37. Rg8 {[%clk 0:00:15]}  Rf4 {[%clk 0:00:31]} 38. Re8 {[%clk 0:00:12]}  Rxf7 {[%clk 0:00:23]} 39. Ng5+ {[%clk 0:00:12]}  Kd7 {[%clk 0:00:23]} 40. Nxf7 {[%clk 0:00:09]}  Rg6+ {[%clk 0:00:23]} 41. Kf3 {[%clk 0:00:09]}  Rf6+ {[%clk 0:00:20]} 42. Ke4 {[%clk 0:00:09]}  Kxe8 {[%clk 0:00:20]} 43. Nxe5 {[%clk 0:00:09]}  Rxf2 {[%clk 0:00:19]} 44. Rh8+ {[%clk 0:00:09]}  Bf8 {[%clk 0:00:20]} 45. Ng6 {[%clk 0:00:08]}  Rf6 {[%clk 0:00:16]} 46. Nxf8 {[%clk 0:00:08]}  Rxf8 {[%clk 0:00:16]} 47. Rxf8+ {[%clk 0:00:09]}  Kxf8 {[%clk 0:00:16]} 48. Kd5 {[%clk 0:00:10]}  Ke7 {[%clk 0:00:17]} 49. b4 {[%clk 0:00:10]}  Kd7 {[%clk 0:00:17]} 50. a4 {[%clk 0:00:11]}  Kc7 {[%clk 0:00:17]} 51. Kc5 {[%clk 0:00:11]}  Kd7 {[%clk 0:00:17]} 52. Kd5 {[%clk 0:00:11]}  Kc7 {[%clk 0:00:17]} 53. a5 {[%clk 0:00:10]}  a6 {[%clk 0:00:15]} 54. Kc5 {[%clk 0:00:10]}  b6+ {[%clk 0:00:13]} 55. axb6+ {[%clk 0:00:08]}  Kb7 {[%clk 0:00:13]} 56. Kc4 {[%clk 0:00:09]}  Kxb6 {[%clk 0:00:12]} 57. Kb3 {[%clk 0:00:09]}  a5 {[%clk 0:00:13]} 58. bxa5+ {[%clk 0:00:09]}  Kxa5 {[%clk 0:00:14]} 1/2-1/2